[Event "*** Titled Tuesday Blitz"]
[Site "Chess.com"]
[Date "2020.04.14"]
[Round "2"]
[White "anon132639"]
[Black "ristingho"]
[Result "1-0"]
[WhiteElo "2708"]
[BlackElo "2464"]
[TimeControl "180+1"]
[EndTime "10:15:24 PDT"]
[Termination "anon132639 won by resignation"]

1. d4 {[%clk 0:03:00.4]} 1... Nf6 {[%clk 0:02:52.9]} 2. Nf3 {[%clk 0:03:00.5]}
2... e6 {[%clk 0:02:50.1]} 3. c4 {[%clk 0:02:58.9]} 3... d5 {[%clk 0:02:50]} 4.
g3 {[%clk 0:02:58.8]} 4... dxc4 {[%clk 0:02:47.3]} 5. Bg2 {[%clk 0:02:58.7]}
5... Bb4+ {[%clk 0:02:47.3]} 6. Bd2 {[%clk 0:02:58.3]} 6... c5 {[%clk
0:02:47.3]} 7. O-O {[%clk 0:02:47.6]} 7... Nc6 {[%clk 0:02:45.6]} 8. dxc5 {[%clk
0:02:44.5]} 8... Bxc5 {[%clk 0:02:40.8]} 9. Qc2 {[%clk 0:02:31.2]} 9... O-O
{[%clk 0:02:34.4]} 10. Bg5 {[%clk 0:02:27.9]} 10... Be7 {[%clk 0:02:13.8]} 11.
Na3 {[%clk 0:02:14.1]} 11... h6 {[%clk 0:02:06.5]} 12. Rfd1 {[%clk 0:02:12]}
12... Qb6 {[%clk 0:02:01.2]} 13. Nxc4 {[%clk 0:02:08.3]} 13... Qa6 {[%clk
0:01:59.6]} 14. Bh4 {[%clk 0:01:48.7]} 14... b5 {[%clk 0:01:56]} 15. Nce5 {[%clk
0:01:34.5]} 15... Nb4 {[%clk 0:01:36.2]} 16. Qb1 {[%clk 0:01:22.6]} 16... Nbd5
{[%clk 0:01:27.5]} 17. e4 {[%clk 0:00:58.9]} 17... Nb4 {[%clk 0:01:15]} 18. a3
{[%clk 0:00:57.2]} 18... Nc6 {[%clk 0:00:58.8]} 19. Nxc6 {[%clk 0:00:57.2]}
19... Qxc6 {[%clk 0:00:58.8]} 20. e5 {[%clk 0:00:56.8]} 20... Nd5 {[%clk
0:00:57]} 21. Bxe7 {[%clk 0:00:57.2]} 21... Nxe7 {[%clk 0:00:56.8]} 22. Ng5
{[%clk 0:00:57.8]} 1-0

[Event "*** Titled Tuesday Blitz"]
[Site "Chess.com"]
[Date "2020.04.14"]
[Round "2"]
[White "Ginger_GM"]
[Black "GadimbayliA"]
[Result "0-1"]
[WhiteElo "2592"]
[BlackElo "2891"]
[TimeControl "180+1"]
[EndTime "10:15:26 PDT"]
[Termination "GadimbayliA won by resignation"]

1. d4 {[%clk 0:03:00.9]} 1... d5 {[%clk 0:02:58.5]} 2. c4 {[%clk 0:03:00.3]}
2... e5 {[%clk 0:02:59.1]} 3. dxe5 {[%clk 0:02:57.1]} 3... d4 {[%clk 0:03:00]}
4. e4 {[%clk 0:02:57.1]} 4... Nc6 {[%clk 0:02:56.7]} 5. f4 {[%clk 0:02:57]} 5...
f6 {[%clk 0:02:54.6]} 6. Bd3 {[%clk 0:02:28.8]} 6... fxe5 {[%clk 0:02:52.5]} 7.
f5 {[%clk 0:02:29]} 7... Nf6 {[%clk 0:02:42.8]} 8. a3 {[%clk 0:02:27.8]} 8... g6
{[%clk 0:02:42.4]} 9. fxg6 {[%clk 0:02:23.4]} 9... hxg6 {[%clk 0:02:43.3]} 10.
Nf3 {[%clk 0:02:16.7]} 10... Bg7 {[%clk 0:02:43.7]} 11. O-O {[%clk 0:02:15.2]}
11... Ng4 {[%clk 0:02:39.2]} 12. Ng5 {[%clk 0:01:43.8]} 12... Nxh2 {[%clk
0:02:34.7]} 13. Nf7 {[%clk 0:00:55.9]} 13... Qh4 {[%clk 0:02:24.6]} 14. Bg5
{[%clk 0:00:55.5]} 14... Qg3 {[%clk 0:02:14.2]} 15. Nxh8 {[%clk 0:00:51.6]}
15... Ng4 {[%clk 0:02:06.5]} 16. Rf3 {[%clk 0:00:33.4]} 16... Qh2+ {[%clk
0:02:01.2]} 17. Kf1 {[%clk 0:00:33.8]} 17... Qh1+ {[%clk 0:02:02.1]} 18. Ke2
{[%clk 0:00:33.9]} 18... Qxg2+ {[%clk 0:02:01.7]} 19. Ke1 {[%clk 0:00:34.3]}
19... Ne3 {[%clk 0:02:02.2]} 20. Qe2 {[%clk 0:00:31.9]} 20... Qg1+ {[%clk
0:01:55.5]} 21. Kd2 {[%clk 0:00:29.3]} 21... Qxg5 {[%clk 0:01:56.4]} 22. Nf7
{[%clk 0:00:27.3]} 22... Nxc4+ {[%clk 0:01:43.4]} 23. Kc2 {[%clk 0:00:27.1]}
23... Ne3+ {[%clk 0:01:41.1]} 24. Rxe3 {[%clk 0:00:23.3]} 24... Qxe3 {[%clk
0:01:40.1]} 25. Qxe3 {[%clk 0:00:23.7]} 25... dxe3 {[%clk 0:01:40.4]} 26. Ng5
{[%clk 0:00:23.3]} 26... Nd4+ {[%clk 0:01:40.5]} 27. Kd1 {[%clk 0:00:22.7]}
27... Bg4+ {[%clk 0:01:39.8]} 28. Ke1 {[%clk 0:00:22.1]} 28... Nb3 {[%clk
0:01:39.4]} 29. Ra2 {[%clk 0:00:22]} 29... Nc1 {[%clk 0:01:39.5]} 0-1

[Event "*** Titled Tuesday Blitz"]
[Site "Chess.com"]
[Date "2020.04.14"]
[Round "2"]
[White "Zmof"]
[Black "talman67"]
[Result "0-1"]
[WhiteElo "2295"]
[BlackElo "2560"]
[TimeControl "180+1"]
[EndTime "10:15:27 PDT"]
[Termination "talman67 won by resignation"]

1. e4 {[%clk 0:03:00.9]} 1... c5 {[%clk 0:02:55]} 2. Nf3 {[%clk 0:02:59.9]} 2...
d6 {[%clk 0:02:55.4]} 3. Bb5+ {[%clk 0:02:59.6]} 3... Nd7 {[%clk 0:02:53.7]} 4.
c3 {[%clk 0:02:58.4]} 4... a6 {[%clk 0:02:53.3]} 5. Ba4 {[%clk 0:02:57.9]} 5...
b5 {[%clk 0:02:53.8]} 6. Bc2 {[%clk 0:02:57.5]} 6... Bb7 {[%clk 0:02:54.4]} 7.
O-O {[%clk 0:02:56.8]} 7... Ngf6 {[%clk 0:02:54.8]} 8. Qe2 {[%clk 0:02:56.9]}
8... Rc8 {[%clk 0:02:53]} 9. Rd1 {[%clk 0:02:54.1]} 9... Qc7 {[%clk 0:02:52.5]}
10. Na3 {[%clk 0:02:51.6]} 10... e5 {[%clk 0:02:50.1]} 11. d3 {[%clk 0:02:48.3]}
11... Be7 {[%clk 0:02:49.4]} 12. h3 {[%clk 0:02:46.9]} 12... O-O {[%clk
0:02:49.8]} 13. Be3 {[%clk 0:02:46.8]} 13... Rfe8 {[%clk 0:02:50]} 14. Rac1
{[%clk 0:02:45.9]} 14... Bf8 {[%clk 0:02:49.5]} 15. Bg5 {[%clk 0:02:39.1]} 15...
h6 {[%clk 0:02:49.6]} 16. Bh4 {[%clk 0:02:39.3]} 16... d5 {[%clk 0:02:45.6]} 17.
Bxf6 {[%clk 0:02:27.9]} 17... Nxf6 {[%clk 0:02:44.7]} 18. Nb1 {[%clk 0:02:09.4]}
18... c4 {[%clk 0:02:34.7]} 19. Nbd2 {[%clk 0:02:07.9]} 19... cxd3 {[%clk
0:02:33]} 20. Bxd3 {[%clk 0:02:06.7]} 20... dxe4 {[%clk 0:02:32.8]} 21. Nxe4
{[%clk 0:02:06.3]} 21... Nd5 {[%clk 0:02:30.5]} 22. g3 {[%clk 0:02:04.7]} 22...
Rcd8 {[%clk 0:02:28]} 23. Bb1 {[%clk 0:01:58.2]} 23... f5 {[%clk 0:02:26.1]} 24.
Ned2 {[%clk 0:01:55.7]} 24... e4 {[%clk 0:02:25.8]} 25. Nd4 {[%clk 0:01:54.9]}
25... e3 {[%clk 0:02:26.2]} 26. N2f3 {[%clk 0:01:48.4]} 26... f4 {[%clk
0:02:20.3]} 27. Qc2 {[%clk 0:01:44]} 27... exf2+ {[%clk 0:02:16.6]} 28. Kxf2
{[%clk 0:01:43]} 28... fxg3+ {[%clk 0:02:16]} 29. Kg1 {[%clk 0:01:43.7]} 29...
Nf6 {[%clk 0:02:14.9]} 30. a3 {[%clk 0:01:34.8]} 30... Bc5 {[%clk 0:02:14]} 31.
Ba2+ {[%clk 0:01:28.8]} 31... Kh8 {[%clk 0:02:13]} 32. Nh4 {[%clk 0:01:27.4]}
32... Be4 {[%clk 0:02:11.8]} 33. Qd2 {[%clk 0:01:20.9]} 33... g5 {[%clk
0:02:05.5]} 34. Re1 {[%clk 0:01:18.9]} 34... gxh4 {[%clk 0:02:03]} 35. Rxe4
{[%clk 0:01:12.2]} 35... Nxe4 {[%clk 0:01:53.2]} 36. Qxh6+ {[%clk 0:01:09.2]}
36... Qh7 {[%clk 0:01:53.6]} 37. Qf4 {[%clk 0:01:05.5]} 37... Bd6 {[%clk
0:01:32.6]} 38. Qg4 {[%clk 0:01:00.8]} 38... Nf2 {[%clk 0:01:29.7]} 39. Qg5
{[%clk 0:00:57.6]} 39... Nxh3+ {[%clk 0:01:29.2]} 0-1

[Event "*** Titled Tuesday Blitz"]
[Site "Chess.com"]
[Date "2020.04.14"]
[Round "2"]
[White "LawrenceTrent"]
[Black "TheoSlade"]
[Result "1-0"]
[WhiteElo "2511"]
[BlackElo "2267"]
[TimeControl "180+1"]
[EndTime "10:15:27 PDT"]
[Termination "LawrenceTrent won by checkmate"]

1. d4 {[%clk 0:03:00.9]} 1... Nf6 {[%clk 0:03:00.1]} 2. Nc3 {[%clk 0:03:00]}
2... d5 {[%clk 0:02:59.8]} 3. Bf4 {[%clk 0:02:59.8]} 3... e6 {[%clk 0:03:00.1]}
4. e3 {[%clk 0:02:59.7]} 4... Bb4 {[%clk 0:02:59.9]} 5. g4 {[%clk 0:02:59]} 5...
c5 {[%clk 0:02:52]} 6. Ne2 {[%clk 0:02:54.3]} 6... O-O {[%clk 0:02:39.8]} 7. a3
{[%clk 0:02:47.1]} 7... Ba5 {[%clk 0:02:33]} 8. g5 {[%clk 0:02:40.2]} 8... Ne4
{[%clk 0:02:26]} 9. dxc5 {[%clk 0:02:32.9]} 9... Bxc3+ {[%clk 0:01:55]} 10. Nxc3
{[%clk 0:02:32.2]} 10... Nxc3 {[%clk 0:01:54.7]} 11. bxc3 {[%clk 0:02:32.2]}
11... Qa5 {[%clk 0:01:53.8]} 12. Qd2 {[%clk 0:02:25.8]} 12... Nc6 {[%clk
0:01:44.4]} 13. c4 {[%clk 0:02:24.1]} 13... Qxc5 {[%clk 0:01:40.5]} 14. cxd5
{[%clk 0:02:24.1]} 14... exd5 {[%clk 0:01:38.1]} 15. Bd3 {[%clk 0:02:19.5]}
15... Re8 {[%clk 0:01:30.6]} 16. h4 {[%clk 0:02:10.9]} 16... Ne5 {[%clk
0:01:14.9]} 17. Bxe5 {[%clk 0:02:01.7]} 17... Rxe5 {[%clk 0:01:15.8]} 18. Qb4
{[%clk 0:01:59.1]} 18... Qc7 {[%clk 0:01:03.7]} 19. O-O-O {[%clk 0:01:51.8]}
19... Bd7 {[%clk 0:00:39.9]} 20. Rde1 {[%clk 0:01:37.7]} 20... a5 {[%clk
0:00:38.5]} 21. Qd4 {[%clk 0:01:36.6]} 21... Rc8 {[%clk 0:00:36.1]} 22. f4
{[%clk 0:01:36]} 22... Re6 {[%clk 0:00:24.2]} 23. h5 {[%clk 0:01:30.9]} 23...
Bb5 {[%clk 0:00:18.6]} 24. h6 {[%clk 0:01:29.7]} 24... Bxd3 {[%clk 0:00:16.7]}
25. Qxg7# {[%clk 0:01:29.2]} 1-0

[Event "*** Titled Tuesday Blitz"]
[Site "Chess.com"]
[Date "2020.04.14"]
[Round "2"]
[White "Tiqr777"]
[Black "Ceejay271"]
[Result "1-0"]
[WhiteElo "2645"]
[BlackElo "2313"]
[TimeControl "180+1"]
[EndTime "10:15:28 PDT"]
[Termination "Tiqr777 won by resignation"]

1. d4 {[%clk 0:03:00.9]} 1... Nf6 {[%clk 0:02:59.2]} 2. Nf3 {[%clk 0:03:01.1]}
2... d5 {[%clk 0:02:58.7]} 3. Bg5 {[%clk 0:03:01.1]} 3... Ne4 {[%clk 0:02:57.8]}
4. Bh4 {[%clk 0:03:01]} 4... c5 {[%clk 0:02:58.3]} 5. c3 {[%clk 0:03:01.1]} 5...
Nc6 {[%clk 0:02:58.9]} 6. e3 {[%clk 0:03:00.8]} 6... Qb6 {[%clk 0:02:58.8]} 7.
Qb3 {[%clk 0:03:00.2]} 7... c4 {[%clk 0:02:59]} 8. Qxb6 {[%clk 0:03:00]} 8...
axb6 {[%clk 0:02:59.9]} 9. Nbd2 {[%clk 0:03:00.6]} 9... Nxd2 {[%clk 0:02:59.3]}
10. Kxd2 {[%clk 0:03:00.3]} 10... b5 {[%clk 0:02:59.9]} 11. a3 {[%clk
0:03:00.2]} 11... b4 {[%clk 0:02:58.1]} 12. cxb4 {[%clk 0:02:57.6]} 12... Nxb4
{[%clk 0:02:57.8]} 13. Be2 {[%clk 0:02:57.7]} 13... Nc6 {[%clk 0:02:56.3]} 14.
Rhb1 {[%clk 0:02:53.4]} 14... Bf5 {[%clk 0:02:54.9]} 15. Rc1 {[%clk 0:02:49.3]}
15... e6 {[%clk 0:02:52.8]} 16. Bg3 {[%clk 0:02:40.2]} 16... b5 {[%clk
0:02:48.9]} 17. Ne5 {[%clk 0:02:39]} 17... Nxe5 {[%clk 0:02:47.5]} 18. Bxe5
{[%clk 0:02:39.6]} 18... f6 {[%clk 0:02:47.7]} 19. Bg3 {[%clk 0:02:38.5]} 19...
Be7 {[%clk 0:02:44.2]} 20. Bd1 {[%clk 0:02:36.1]} 20... Kf7 {[%clk 0:02:40.5]}
21. Bc2 {[%clk 0:02:36.3]} 21... Bxc2 {[%clk 0:02:37.9]} 22. Kxc2 {[%clk
0:02:35.6]} 22... b4 {[%clk 0:02:33.6]} 23. axb4 {[%clk 0:02:35.1]} 23... Bxb4
{[%clk 0:02:34.2]} 24. Rcb1 {[%clk 0:02:28.1]} 24... Rhc8 {[%clk 0:02:29.3]} 25.
b3 {[%clk 0:02:21.2]} 25... cxb3+ {[%clk 0:02:05.2]} 26. Kxb3 {[%clk 0:02:20.2]}
26... Be7 {[%clk 0:02:04]} 27. Rxa8 {[%clk 0:02:17.7]} 27... Rxa8 {[%clk
0:02:02.9]} 28. Kc2 {[%clk 0:02:18.1]} 28... Ra2+ {[%clk 0:01:59.9]} 29. Rb2
{[%clk 0:02:17.4]} 29... Rxb2+ {[%clk 0:01:59.8]} 30. Kxb2 {[%clk 0:02:18.1]}
30... Ke8 {[%clk 0:01:57.7]} 31. Kc2 {[%clk 0:02:16.8]} 31... Kd7 {[%clk
0:01:57.5]} 32. Kd3 {[%clk 0:02:17.3]} 32... f5 {[%clk 0:01:54.6]} 33. Be5
{[%clk 0:02:16]} 33... g6 {[%clk 0:01:53.4]} 34. f3 {[%clk 0:02:14.2]} 34... Kc6
{[%clk 0:01:53.9]} 35. g4 {[%clk 0:02:11.5]} 35... fxg4 {[%clk 0:01:48]} 36.
fxg4 {[%clk 0:02:10.9]} 36... Kb5 {[%clk 0:01:46.5]} 37. e4 {[%clk 0:02:11.2]}
37... Kb4 {[%clk 0:01:43.8]} 38. h3 {[%clk 0:02:07.4]} 38... Kb3 {[%clk
0:01:42.6]} 39. exd5 {[%clk 0:02:04.3]} 39... exd5 {[%clk 0:01:41.6]} 40. Bg3
{[%clk 0:02:04.6]} 40... Kb2 {[%clk 0:01:38.9]} 41. Bf4 {[%clk 0:02:04.4]} 41...
Bf6 {[%clk 0:01:34.4]} 42. Be3 {[%clk 0:02:02]} 42... Kb3 {[%clk 0:01:31]} 43.
Bf4 {[%clk 0:02:01.4]} 43... Be7 {[%clk 0:01:28.6]} 44. Be3 {[%clk 0:02:00.8]}
44... Ba3 {[%clk 0:01:26]} 45. Bf4 {[%clk 0:02:00.4]} 45... Kb2 {[%clk
0:01:22.5]} 46. Bd2 {[%clk 0:01:58.9]} 46... Kb1 {[%clk 0:01:21.8]} 47. Bf4
{[%clk 0:01:55.6]} 47... Bc1 {[%clk 0:01:13.8]} 48. Bxc1 {[%clk 0:01:52.4]}
48... Kxc1 {[%clk 0:01:14.7]} 49. Kc3 {[%clk 0:01:52.7]} 49... Kd1 {[%clk
0:01:14.3]} 50. Kb4 {[%clk 0:01:52.4]} 50... Ke2 {[%clk 0:01:08.6]} 51. Kc5
{[%clk 0:01:51.7]} 1-0

[Event "*** Titled Tuesday Blitz"]
[Site "Chess.com"]
[Date "2020.04.14"]
[Round "2"]
[White "Borsuk_Konstantin"]
[Black "jefferyx"]
[Result "0-1"]
[WhiteElo "2488"]
[BlackElo "2874"]
[TimeControl "180+1"]
[EndTime "10:15:37 PDT"]
[Termination "jefferyx won by resignation"]

1. d4 {[%clk 0:03:00.9]} 1... Nf6 {[%clk 0:03:00.1]} 2. c4 {[%clk 0:02:59.3]}
2... e6 {[%clk 0:03:00.4]} 3. Nc3 {[%clk 0:02:59.3]} 3... Bb4 {[%clk 0:03:00.3]}
4. Qc2 {[%clk 0:02:59.7]} 4... O-O {[%clk 0:02:57.3]} 5. a3 {[%clk 0:02:59.1]}
5... Bxc3+ {[%clk 0:02:56.7]} 6. Qxc3 {[%clk 0:03:00]} 6... d6 {[%clk
0:02:57.2]} 7. Bg5 {[%clk 0:02:59.6]} 7... Nbd7 {[%clk 0:02:52.3]} 8. f3 {[%clk
0:02:59.5]} 8... b6 {[%clk 0:02:39.7]} 9. Nh3 {[%clk 0:02:58.1]} 9... c5 {[%clk
0:02:35.3]} 10. e3 {[%clk 0:02:58.2]} 10... Ba6 {[%clk 0:02:34.3]} 11. b4 {[%clk
0:02:57]} 11... Rc8 {[%clk 0:02:30.9]} 12. dxc5 {[%clk 0:02:55.6]} 12... bxc5
{[%clk 0:02:28.1]} 13. b5 {[%clk 0:02:55.4]} 13... Bb7 {[%clk 0:02:28.4]} 14. a4
{[%clk 0:02:54.2]} 14... h6 {[%clk 0:02:28.1]} 15. Bh4 {[%clk 0:02:52.4]} 15...
d5 {[%clk 0:02:28.4]} 16. Bf2 {[%clk 0:02:45.1]} 16... e5 {[%clk 0:02:12.2]} 17.
a5 {[%clk 0:02:26.1]} 17... d4 {[%clk 0:02:10]} 18. Qb2 {[%clk 0:02:12.7]} 18...
e4 {[%clk 0:02:09.8]} 19. f4 {[%clk 0:02:12.2]} 19... Ng4 {[%clk 0:02:09.8]} 20.
Be2 {[%clk 0:02:10.6]} 20... Nxf2 {[%clk 0:01:41.1]} 21. Nxf2 {[%clk 0:02:08]}
21... Nf6 {[%clk 0:01:41.5]} 22. O-O {[%clk 0:02:01.1]} 22... dxe3 {[%clk
0:01:17.7]} 23. Nd1 {[%clk 0:01:45.7]} 23... Qd2 {[%clk 0:01:14.7]} 24. Ra3
{[%clk 0:01:36.9]} 24... Rcd8 {[%clk 0:01:10.6]} 25. Rxe3 {[%clk 0:01:35.5]}
25... Qxa5 {[%clk 0:01:10.6]} 26. Nc3 {[%clk 0:01:31.3]} 26... Rd4 {[%clk
0:01:08.9]} 27. Ra1 {[%clk 0:01:29.9]} 27... Qb6 {[%clk 0:01:06.3]} 28. Qa3
{[%clk 0:01:18]} 28... Qd6 {[%clk 0:01:04.4]} 29. g3 {[%clk 0:01:17.2]} 29...
Rd2 {[%clk 0:01:02.3]} 30. Nb1 {[%clk 0:01:01.3]} 30... Rxe2 {[%clk 0:01:01.4]}
31. Rxe2 {[%clk 0:01:00]} 31... Qd1+ {[%clk 0:01:01.3]} 0-1

[Event "*** Titled Tuesday Blitz"]
[Site "Chess.com"]
[Date "2020.04.14"]
[Round "2"]
[White "WiktoriaPOL"]
[Black "Jeffinho023"]
[Result "0-1"]
[WhiteElo "2126"]
[BlackElo "2413"]
[TimeControl "180+1"]
[EndTime "10:15:42 PDT"]
[Termination "Jeffinho023 won by resignation"]

1. e4 {[%clk 0:03:00.9]} 1... c6 {[%clk 0:02:58.1]} 2. d4 {[%clk 0:03:00]} 2...
d5 {[%clk 0:02:57.1]} 3. Nc3 {[%clk 0:02:59.6]} 3... dxe4 {[%clk 0:02:56.4]} 4.
Nxe4 {[%clk 0:03:00.3]} 4... Bf5 {[%clk 0:02:56.5]} 5. Ng3 {[%clk 0:03:00.9]}
5... Bg6 {[%clk 0:02:56.7]} 6. h4 {[%clk 0:03:01.1]} 6... h6 {[%clk 0:02:57]} 7.
Nf3 {[%clk 0:03:01.6]} 7... Nd7 {[%clk 0:02:56.1]} 8. h5 {[%clk 0:03:02.2]} 8...
Bh7 {[%clk 0:02:56.3]} 9. Bd3 {[%clk 0:03:02.8]} 9... Bxd3 {[%clk 0:02:56.8]}
10. Qxd3 {[%clk 0:03:03.5]} 10... e6 {[%clk 0:02:57.7]} 11. Bd2 {[%clk
0:02:59.1]} 11... Ngf6 {[%clk 0:02:57.5]} 12. O-O-O {[%clk 0:02:53]} 12... Be7
{[%clk 0:02:57.5]} 13. Ne4 {[%clk 0:02:50.3]} 13... Nxe4 {[%clk 0:02:57.4]} 14.
Qxe4 {[%clk 0:02:50]} 14... Bf6 {[%clk 0:02:58.3]} 15. Be3 {[%clk 0:02:31.6]}
15... Nb6 {[%clk 0:02:57.5]} 16. Qd3 {[%clk 0:02:29.5]} 16... Qd5 {[%clk
0:02:57.2]} 17. b3 {[%clk 0:02:25.2]} 17... O-O-O {[%clk 0:02:56.5]} 18. c4
{[%clk 0:02:18.3]} 18... Qa5 {[%clk 0:02:53.6]} 19. Kb1 {[%clk 0:02:02.6]} 19...
c5 {[%clk 0:02:52.5]} 20. Qd2 {[%clk 0:01:52.2]} 20... Qa3 {[%clk 0:02:35]} 21.
Qb2 {[%clk 0:01:48]} 21... Qxb2+ {[%clk 0:02:31.2]} 22. Kxb2 {[%clk 0:01:47.8]}
22... cxd4 {[%clk 0:02:31]} 23. Bxd4 {[%clk 0:01:43]} 23... Rxd4 {[%clk
0:02:30.5]} 24. Nxd4 {[%clk 0:01:37]} 24... Rd8 {[%clk 0:02:16.6]} 25. Kc3
{[%clk 0:01:34.7]} 25... Nd7 {[%clk 0:02:15.9]} 26. Kc2 {[%clk 0:01:25.7]} 26...
a6 {[%clk 0:02:14.6]} 27. Nf3 {[%clk 0:01:24]} 27... Re8 {[%clk 0:02:14.2]} 28.
Rd6 {[%clk 0:01:18.8]} 28... Nc5 {[%clk 0:02:12.5]} 29. Rhd1 {[%clk 0:01:06]}
29... Ne4 {[%clk 0:02:12]} 30. Rb6 {[%clk 0:00:49.3]} 30... Nxf2 {[%clk
0:02:08.2]} 31. Rd2 {[%clk 0:00:45.9]} 31... Ne4 {[%clk 0:02:06]} 32. Re2 {[%clk
0:00:41.9]} 32... Ng3 {[%clk 0:02:04.1]} 33. Rd2 {[%clk 0:00:37]} 33... Nxh5
{[%clk 0:02:03.5]} 34. g4 {[%clk 0:00:34.5]} 34... Ng3 {[%clk 0:02:01.8]} 35. c5
{[%clk 0:00:26.4]} 35... Ne4 {[%clk 0:02:00.4]} 36. Rd1 {[%clk 0:00:20.6]} 36...
Nxc5 {[%clk 0:01:59.7]} 37. b4 {[%clk 0:00:14.6]} 0-1

[Event "*** Titled Tuesday Blitz"]
[Site "Chess.com"]
[Date "2020.04.14"]
[Round "2"]
[White "biesiadnik"]
[Black "TigrVShlyape"]
[Result "1/2-1/2"]
[WhiteElo "2585"]
[BlackElo "2854"]
[TimeControl "180+1"]
[EndTime "10:15:43 PDT"]
[Termination "Game drawn by agreement"]

1. e4 {[%clk 0:03:00.9]} 1... c5 {[%clk 0:02:57.5]} 2. Nf3 {[%clk 0:03:00.7]}
2... e6 {[%clk 0:02:56.5]} 3. c3 {[%clk 0:03:00.6]} 3... d5 {[%clk 0:02:53.6]}
4. exd5 {[%clk 0:03:01.5]} 4... exd5 {[%clk 0:02:52.3]} 5. d4 {[%clk 0:03:01.7]}
5... c4 {[%clk 0:02:51.3]} 6. b3 {[%clk 0:03:02.1]} 6... cxb3 {[%clk 0:02:50.8]}
7. axb3 {[%clk 0:03:02]} 7... Bd6 {[%clk 0:02:51.1]} 8. Bd3 {[%clk 0:02:58.5]}
8... Ne7 {[%clk 0:02:50]} 9. O-O {[%clk 0:02:57.9]} 9... Nbc6 {[%clk 0:02:48.2]}
10. Ba3 {[%clk 0:02:54.6]} 10... O-O {[%clk 0:02:45.7]} 11. Bxd6 {[%clk
0:02:49.9]} 11... Qxd6 {[%clk 0:02:44.7]} 12. Na3 {[%clk 0:02:47.7]} 12... Bf5
{[%clk 0:02:42.5]} 13. Nc2 {[%clk 0:02:37.7]} 13... a6 {[%clk 0:02:40.6]} 14.
Re1 {[%clk 0:02:37]} 14... Rfe8 {[%clk 0:02:36.1]} 15. Re2 {[%clk 0:02:15.2]}
15... Bxd3 {[%clk 0:02:34.3]} 16. Qxd3 {[%clk 0:02:14.8]} 16... Ng6 {[%clk
0:02:34.6]} 17. Rae1 {[%clk 0:02:13.1]} 17... Rxe2 {[%clk 0:02:31.8]} 18. Qxe2
{[%clk 0:02:13.6]} 18... Qd7 {[%clk 0:02:18.3]} 19. g3 {[%clk 0:02:09.5]} 19...
Rc8 {[%clk 0:02:11.9]} 20. h4 {[%clk 0:01:58.9]} 20... h6 {[%clk 0:02:07.6]} 21.
Ne3 {[%clk 0:01:45.6]} 21... Nge7 {[%clk 0:02:06.3]} 22. Qd3 {[%clk 0:01:42.5]}
22... Rd8 {[%clk 0:01:57.5]} 23. Kg2 {[%clk 0:01:14]} 23... Qc8 {[%clk 0:01:56]}
24. Ne5 {[%clk 0:01:10.1]} 24... Nxe5 {[%clk 0:01:50.1]} 25. dxe5 {[%clk
0:01:11]} 25... Qd7 {[%clk 0:01:30.4]} 26. Nc2 {[%clk 0:01:10.5]} 26... Nc6
{[%clk 0:01:24.9]} 27. Nd4 {[%clk 0:01:10.5]} 27... Nxd4 {[%clk 0:01:24]} 28.
cxd4 {[%clk 0:01:10.4]} 28... Rc8 {[%clk 0:01:16.4]} 29. Qe3 {[%clk 0:01:06.4]}
29... Qf5 {[%clk 0:01:14.8]} 30. e6 {[%clk 0:01:01.5]} 30... fxe6 {[%clk
0:01:11.3]} 31. Qxe6+ {[%clk 0:01:01.8]} 31... Qxe6 {[%clk 0:01:11.4]} 32. Rxe6
{[%clk 0:01:02.7]} 32... Rc3 {[%clk 0:01:07.8]} 33. Rb6 {[%clk 0:01:02.7]} 33...
Rd3 {[%clk 0:01:07.6]} 34. Rxb7 {[%clk 0:01:03]} 34... Rxd4 {[%clk 0:01:07.7]}
35. Ra7 {[%clk 0:01:03.1]} 1/2-1/2

[Event "*** Titled Tuesday Blitz"]
[Site "Chess.com"]
[Date "2020.04.14"]
[Round "2"]
[White "Enriquack"]
[Black "stefan_95"]
[Result "0-1"]
[WhiteElo "2290"]
[BlackElo "2563"]
[TimeControl "180+1"]
[EndTime "10:15:43 PDT"]
[Termination "stefan_95 won by resignation"]

1. e4 {[%clk 0:03:00.2]} 1... c5 {[%clk 0:02:56.7]} 2. Nf3 {[%clk 0:03:00]} 2...
d6 {[%clk 0:02:55.3]} 3. d4 {[%clk 0:02:59.9]} 3... cxd4 {[%clk 0:02:56.2]} 4.
Nxd4 {[%clk 0:03:00.2]} 4... Nf6 {[%clk 0:02:56.3]} 5. Nc3 {[%clk 0:03:00.3]}
5... g6 {[%clk 0:02:56.7]} 6. Be3 {[%clk 0:03:00.1]} 6... Bg7 {[%clk 0:02:57.1]}
7. f3 {[%clk 0:03:00.2]} 7... O-O {[%clk 0:02:57.6]} 8. Qd2 {[%clk 0:03:00.5]}
8... Nc6 {[%clk 0:02:58.2]} 9. O-O-O {[%clk 0:03:00.6]} 9... Bd7 {[%clk
0:02:58.4]} 10. Kb1 {[%clk 0:02:59.8]} 10... Ne5 {[%clk 0:02:57.5]} 11. g4
{[%clk 0:02:57.6]} 11... Rc8 {[%clk 0:02:58]} 12. h4 {[%clk 0:02:42.4]} 12...
Qa5 {[%clk 0:02:55.1]} 13. Nb3 {[%clk 0:02:29.4]} 13... Qc7 {[%clk 0:02:53.4]}
14. Be2 {[%clk 0:02:16.8]} 14... b5 {[%clk 0:02:53]} 15. g5 {[%clk 0:02:15.3]}
15... b4 {[%clk 0:02:52.2]} 16. Nd5 {[%clk 0:01:46]} 16... Nxd5 {[%clk 0:02:50]}
17. exd5 {[%clk 0:01:46.1]} 17... Nc4 {[%clk 0:02:46.6]} 18. Bxc4 {[%clk
0:01:43.3]} 18... Qxc4 {[%clk 0:02:47.5]} 19. h5 {[%clk 0:01:36.3]} 19... Bf5
{[%clk 0:02:44]} 20. Rc1 {[%clk 0:01:35.6]} 20... a5 {[%clk 0:02:40.4]} 21. Nxa5
{[%clk 0:01:34.7]} 21... Qa6 {[%clk 0:02:37.7]} 22. Nc6 {[%clk 0:01:30.8]} 22...
Ra8 {[%clk 0:02:35.7]} 23. Nxb4 {[%clk 0:01:28.8]} 23... Qa4 {[%clk 0:02:31.6]}
24. Bd4 {[%clk 0:01:22]} 24... Rfb8 {[%clk 0:02:29.7]} 25. a3 {[%clk 0:01:19.9]}
25... Qb3 {[%clk 0:02:18]} 26. Bxg7 {[%clk 0:01:02.7]} 26... Rxa3 {[%clk
0:02:15.9]} 27. Qc3 {[%clk 0:00:55.1]} 27... Rxb4 {[%clk 0:01:32.8]} 28. Qc8+
{[%clk 0:00:51.1]} 28... Bxc8 {[%clk 0:01:31.2]} 29. cxb3 {[%clk 0:00:51.4]}
29... Bf5+ {[%clk 0:01:31]} 30. Rc2 {[%clk 0:00:45.6]} 30... Raxb3 {[%clk
0:01:30.2]} 31. Bc3 {[%clk 0:00:44.3]} 31... Rf4 {[%clk 0:01:26.9]} 32. hxg6
{[%clk 0:00:41.7]} 32... fxg6 {[%clk 0:01:23]} 33. Kc1 {[%clk 0:00:39.2]} 33...
Bxc2 {[%clk 0:01:21.7]} 34. Kxc2 {[%clk 0:00:39.5]} 34... Rb5 {[%clk 0:01:22.1]}
35. Re1 {[%clk 0:00:37.9]} 35... Kf7 {[%clk 0:01:21]} 0-1